fUSD/lending_fUSD_20240619
["ID","MTS","AMOUNT","RATE_DAILY","PERIOD"]
[329891941,1718799054683,-500.0,0.00013972,2]
[329891942,1718799054693,-517.68411668,0.00013972,2]
[329891943,1718799054703,-500.0,0.00013972,2]
[329891944,1718799054713,-1579.26,0.00013972,2]
[329891945,1718799054722,-955.52,0.00013972,2]
[329891946,1718799054732,-500.0,0.00013972,2]
[329891947,1718799054742,-500.0,0.00013972,2]
[329891948,1718799054751,-500.0,0.00013972,2]
[329891949,1718799054760,-251.66717705,0.00013972,2]
[329891950,1718799054770,-565.53,0.00013972,2]
[329891951,1718799054781,-500.0,0.00013972,2]
[329891952,1718799054791,-500.0,0.00013972,2]
[329891953,1718799054800,-1030.32,0.00013972,2]
[329891954,1718799054810,-1172.57,0.00013972,2]
[329891955,1718799054819,-500.0,0.00013972,2]
[329891956,1718799054829,-524.34,0.00013972,2]
[329891957,1718799054839,-500.0,0.00013972,2]
[329891958,1718799054848,-500.0,0.00013972,2]
[329891959,1718799054858,-500.0,0.00013972,2]
[329891960,1718799054868,-500.0,0.00013972,2]
[329891961,1718799054878,-500.0,0.00013972,2]
[329891962,1718799054887,-1022.46,0.00013972,2]
[329891963,1718799054898,-1077.85,0.00013972,2]
[329891964,1718799054908,-500.0,0.00013972,2]
[329891965,1718799054918,-500.0,0.00013972,2]
[329891966,1718799054928,-519.21,0.00013972,2]
[329891967,1718799054938,-1312.18,0.00013972,2]
[329891968,1718799054948,-500.0,0.00013972,2]
[329891969,1718799054957,-500.0,0.00013972,2]
[329891970,1718799054967,-617.03265528,0.00013972,2]
[329891971,1718799054977,-543.42,0.00013972,2]
[329891972,1718799054988,-500.0,0.00013972,2]
[329891973,1718799054997,-500.0,0.00013972,2]
[329891974,1718799055007,-947.71,0.00013972,2]
[329891975,1718799055017,-500.0,0.00013972,2]
[329891976,1718799055027,-243.84989707,0.00013972,2]
[329891977,1718799055036,-1032.66,0.00013972,2]
[329891978,1718799055046,-528.03,0.00013972,2]
[329891979,1718799055055,-500.0,0.00013972,2]
[329891980,1718799055065,-337.86446737,0.00013972,2]
[329891981,1718799055075,-500.0,0.00013972,2]
[329891982,1718799055084,-823.07,0.00013972,2]
[329891983,1718799055094,-759.3,0.00013972,2]
[329891984,1718799055103,-500.0,0.00013972,2]
[329891985,1718799055114,-500.0,0.00013972,2]
[329891986,1718799055125,-564.87,0.00013972,2]
[329891987,1718799055135,-500.0,0.00013972,2]
[329891988,1718799055145,-1873.95,0.00013972,2]
[329891989,1718799055155,-405.87946069,0.00013972,2]
[329891990,1718799055164,-500.0,0.00013972,2]
[329891991,1718799055174,-645.3,0.00013972,2]
[329891992,1718799055184,-500.0,0.00013972,2]
[329891993,1718799055194,-363.8445062,0.00013972,2]
[329891994,1718799055204,-500.0,0.00013972,2]
[329891995,1718799055214,-500.0,0.00013972,2]
[329891996,1718799055224,-1340.42,0.00013972,2]
[329891997,1718799055233,-1209.32,0.00013972,2]
[329891998,1718799055244,-956.36,0.00013972,2]
[329891999,1718799055254,-500.0,0.00013972,2]
[329892000,1718799055264,-500.0,0.00013972,2]
[329892001,1718799055274,-500.0,0.00013972,2]
[329892002,1718799055284,-1509.21,0.00013972,2]
[329892003,1718799055294,-500.0,0.00013972,2]
[329892004,1718799055304,-500.0,0.00013972,2]
[329892005,1718799055314,-500.0,0.00013972,2]
[329892006,1718799055324,-1120.04,0.00013972,2]
[329892007,1718799055333,-500.0,0.00013972,2]
[329892008,1718799055343,-1523.67,0.00013972,2]
[329892009,1718799055352,-588.35,0.00013972,2]
[329892010,1718799055362,-500.0,0.00013972,2]
[329892011,1718799055372,-500.0,0.00013972,2]
[329892012,1718799055382,-500.0,0.00013972,2]
[329892013,1718799055391,-1613.11,0.00013972,2]
[329892014,1718799055401,-619.17,0.00013972,2]
[329892015,1718799055410,-500.0,0.00013972,2]
[329892016,1718799055420,-535.83245497,0.00013972,2]
[329892017,1718799055430,-881.96,0.00013972,2]
[329892018,1718799055439,-1079.06,0.00013972,2]
[329892019,1718799055449,-1286.6,0.00013972,2]
[329892020,1718799055459,-600.89051624,0.00013972,2]
[329892021,1718799055471,-620.99,0.00013972,2]
[329892022,1718799055481,-500.0,0.00013972,2]
[329892023,1718799055490,-500.0,0.00013972,2]
[329892024,1718799055501,-989.09,0.00013972,2]
[329892025,1718799055511,-178.94470185,0.00013972,2]
[329892026,1718799055521,-500.0,0.00013972,2]
[329892027,1718799055531,-600.08,0.00013972,2]
[329892028,1718799055545,-500.0,0.00013972,2]
[329892029,1718799055556,-500.0,0.00013972,2]
[329892030,1718799055566,-500.0,0.00013972,2]
[329892031,1718799055576,-2167.14,0.00013972,2]
[329892032,1718799055591,-500.0,0.00013972,2]
[329892033,1718799055601,-1512.83,0.00013972,2]
[329892034,1718799055611,-500.0,0.00013972,2]
[329892035,1718799055621,-950.65,0.00013972,2]
[329892036,1718799055631,-693.03,0.00013972,2]
[329892037,1718799055640,-1821.49,0.00013972,2]
[329892038,1718799055650,-631.69,0.00013972,2]
[329892039,1718799055660,-1614.91,0.00013972,2]
[329892040,1718799055670,-500.0,0.00013972,2]
[329892041,1718799055680,-500.0,0.00013972,2]
[329892042,1718799055690,-500.0,0.00013972,2]
[329892043,1718799055700,-1216.84,0.00013972,2]
[329892044,1718799055712,-516.13,0.00013972,2]
[329892045,1718799055722,-1051.33,0.00013972,2]
[329892046,1718799055732,-554.6,0.00013972,2]
[329892047,1718799055742,-1274.85,0.00013972,2]
[329892048,1718799055751,-615.31,0.00013972,2]
[329892049,1718799055761,-642.74,0.00013972,2]
[329892050,1718799055771,-1483.49,0.00013972,2]
[329892051,1718799055781,-500.0,0.00013972,2]
[329892052,1718799055791,-1192.65,0.00013972,2]
[329892053,1718799055800,-267.20924898,0.00013972,2]
[329892054,1718799055810,-500.0,0.00013972,2]
[329892055,1718799055820,-500.0,0.00013972,2]
[329892056,1718799055829,-500.0,0.00013972,2]
[329892057,1718799055839,-500.0,0.00013972,2]
[329892058,1718799055849,-500.0,0.00013972,2]
[329892059,1718799055862,-601.88,0.00013972,2]
[329892060,1718799055871,-500.0,0.00013972,2]
[329892061,1718799055881,-500.0,0.00013972,2]
[329892062,1718799055891,-1815.06,0.00013972,2]
[329892063,1718799055900,-500.0,0.00013972,2]
[329892064,1718799055910,-500.0,0.00013972,2]
[329892065,1718799055920,-356.07009723,0.00013972,2]
[329892066,1718799055929,-500.0,0.00013972,2]
[329892067,1718799055939,-500.0,0.00013972,2]
[329892068,1718799055948,-1350.34,0.00013972,2]
[329892069,1718799055958,-500.0,0.00013972,2]
[329892070,1718799055968,-500.0,0.00013972,2]
[329892071,1718799055977,-500.0,0.00013972,2]
[329892072,1718799055987,-614.85,0.00013972,2]
[329892073,1718799055996,-2039.62,0.00013972,2]
[329892074,1718799056006,-2309.52,0.00013972,2]
[329892075,1718799056015,-500.0,0.00013972,2]
[329892076,1718799056027,-500.0,0.00013972,2]
[329892077,1718799056036,-500.0,0.00013972,2]
[329892078,1718799056047,-500.0,0.00013972,2]
[329892079,1718799056056,-1129.03,0.00013972,2]
[329892080,1718799056068,-500.0,0.00013972,2]
[329892081,1718799056077,-883.88,0.00013972,2]
[329892082,1718799056087,-684.45,0.00013972,2]
[329892083,1718799056097,-1751.62,0.00013972,2]
[329892084,1718799056106,-725.72,0.00013972,2]
[329892085,1718799056115,-500.0,0.00013972,2]
[329892086,1718799056125,-500.0,0.00013972,2]
[329892087,1718799056134,-500.0,0.00013972,2]
[329892088,1718799056143,-500.0,0.00013972,2]
[329892089,1718799056153,-504.95,0.00013972,2]
[329892090,1718799056162,-1139.34,0.00013972,2]
[329892091,1718799056171,-881.02,0.00013972,2]
[329892092,1718799056181,-929.58,0.00013972,2]
[329892093,1718799056190,-500.0,0.00013972,2]
[329892094,1718799056199,-500.0,0.00013972,2]
[329892095,1718799056209,-983.08,0.00013972,2]
[329892096,1718799056219,-1573.74,0.00013972,2]
[329892097,1718799056228,-500.0,0.00013972,2]
[329892098,1718799056238,-943.82,0.00013972,2]
[329892099,1718799056247,-500.0,0.00013972,2]
[329892100,1718799056257,-1035.47,0.00013972,2]
[329892101,1718799056266,-500.0,0.00013972,2]
[329892102,1718799056276,-1082.56,0.00013972,2]
[329892103,1718799056285,-1977.28,0.00013972,2]
[329892104,1718799056294,-500.0,0.00013972,2]
[329892105,1718799056303,-624.95,0.00013972,2]
[329892106,1718799056313,-500.0,0.00013972,2]
[329892107,1718799056322,-748.17,0.00013972,2]
[329892108,1718799056331,-500.0,0.00013972,2]
[329892109,1718799056340,-677.95,0.00013972,2]
[329892110,1718799056351,-1754.43,0.00013972,2]
[329892111,1718799056361,-500.0,0.00013972,2]
[329892112,1718799056371,-1236.9,0.00013972,2]
[329892113,1718799056381,-500.0,0.00013972,2]
[329892114,1718799056391,-831.33,0.00013972,2]
[329892115,1718799056402,-500.0,0.00013972,2]
[329892116,1718799056413,-500.0,0.00013972,2]
[329892117,1718799056423,-597.9,0.00013972,2]
[329892118,1718799056433,-599.06,0.00013972,2]
[329892119,1718799056444,-500.0,0.00013972,2]
[329892120,1718799056455,-1239.49,0.00013972,2]
[329892121,1718799056468,-1632.72,0.00013972,2]
[329892122,1718799056478,-500.0,0.00013972,2]
[329892123,1718799056487,-558.5,0.00013972,2]
[329892124,1718799056498,-500.0,0.00013972,2]
[329892125,1718799056508,-500.0,0.00013972,2]
[329892126,1718799056517,-1555.09,0.00013972,2]
[329892127,1718799056528,-1094.16,0.00013972,2]
[329892128,1718799056538,-622.41,0.00013972,2]
[329892129,1718799056550,-500.0,0.00013972,2]
[329892130,1718799056560,-1179.03,0.00013972,2]
[329892131,1718799056569,-1488.65,0.00013972,2]
[329892132,1718799056579,-500.0,0.00013972,2]
[329892133,1718799056589,-500.0,0.00013972,2]
[329892134,1718799056599,-3278.22,0.00013972,2]
[329892135,1718799056608,-1317.38,0.00013972,2]
[329892136,1718799056617,-3878.29,0.00013972,2]
[329892137,1718799056628,-1747.53,0.00013972,2]
[329892138,1718799056642,-783.59,0.00013972,2]
[329892139,1718799056656,-500.0,0.00013972,2]
[329892140,1718799056670,-3278.04,0.00013972,2]
[329892141,1718799056681,-500.0,0.00013972,2]
[329892142,1718799056694,-1135.06,0.00013972,2]
[329892143,1718799056708,-500.0,0.00013972,2]
[329892144,1718799056721,-545.96,0.00013972,2]
[329892145,1718799056734,-492.04494731,0.00013972,2]
[329892146,1718799056748,-962.86,0.00013972,2]
[329892147,1718799056760,-2013.19,0.00013972,2]
[329892148,1718799056777,-612.83,0.00013972,2]
[329892149,1718799056790,-2089.7,0.00013972,2]
[329892150,1718799056803,-3725.5,0.00013972,2]
[329892151,1718799056816,-5954.82,0.00013972,2]
[329892152,1718799056829,-1478.0,0.00013972,2]
[329892153,1718799056841,-500.0,0.00013972,2]
[329892154,1718799056856,-1561.79,0.00013972,2]
[329892155,1718799056869,-500.0,0.00013972,2]
[329892156,1718799056881,-907.94,0.00013972,2]
[329892157,1718799056893,-500.0,0.00013972,2]
[329892158,1718799056904,-500.0,0.00013972,2]
[329892159,1718799056916,-500.0,0.00013972,2]
[329892160,1718799056929,-3090.7,0.00013972,2]
[329892161,1718799056941,-500.0,0.00013972,2]
[329892162,1718799056954,-500.0,0.00013972,2]
[329892163,1718799056967,-1234.15,0.00013972,2]
[329892164,1718799056982,-1004.09,0.00013972,2]
[329892165,1718799056995,-1476.17,0.00013972,2]
[329892166,1718799057007,-500.0,0.00013972,2]
[329892167,1718799057017,-500.0,0.00013972,2]
[329892168,1718799057030,-500.0,0.00013972,2]
[329892169,1718799057041,-646.04177467,0.00013972,2]
[329892170,1718799057054,-1380.37,0.00013972,2]
[329892171,1718799057066,-8731.38,0.00013972,2]
[329892172,1718799057079,-500.0,0.00013972,2]
[329892173,1718799057090,-1851.5,0.00013972,2]
[329892174,1718799057102,-500.0,0.00013972,2]
[329892175,1718799057114,-3162.75,0.00013972,2]
[329892176,1718799057128,-1184.57,0.00013972,2]
[329892177,1718799057140,-500.0,0.00013972,2]
[329892178,1718799057152,-500.0,0.00013972,2]
[329892179,1718799057162,-2106.02,0.00013972,2]
[329892180,1718799057174,-728.08,0.00013972,2]
[329892181,1718799057186,-1243.41,0.00013972,2]
[329892182,1718799057197,-500.0,0.00013972,2]
[329892183,1718799057209,-1151.48,0.00013972,2]
[329892184,1718799057221,-3559.67,0.00013972,2]
[329892185,1718799057232,-500.0,0.00013972,2]
[329892186,1718799057244,-1698.71,0.00013972,2]
[329892187,1718799057256,-2128.1,0.00013972,2]
[329892188,1718799057268,-2618.34,0.00013972,2]
[329892189,1718799057281,-500.0,0.00013972,2]
[329892190,1718799057292,-500.0,0.00013972,2]
[329892191,1718799057303,-500.0,0.00013972,2]
[329892192,1718799057315,-609.92,0.00013972,2]
[329892193,1718799057326,-1392.23,0.00013972,2]
[329892194,1718799057338,-225.11888862,0.00013972,2]
[329892195,1718799057349,-3329.4,0.00013972,2]
[329892196,1718799057360,-500.0,0.00013972,2]
[329892197,1718799057372,-3332.68,0.00013972,2]
[329892198,1718799057383,-1324.46,0.00013972,2]
[329892199,1718799057395,-2091.25,0.00013972,2]
[329892200,1718799057407,-1118.52,0.00013972,2]
[329892201,1718799057418,-552.44450699,0.00013972,2]
[329892202,1718799057429,-500.0,0.00013972,2]
[329892203,1718799057440,-623.13,0.00013972,2]
[329892204,1718799057452,-500.0,0.00013972,2]
[329892205,1718799057466,-500.0,0.00013972,2]
[329892206,1718799057477,-695.59,0.00013972,2]
[329892207,1718799057488,-500.0,0.00013972,2]
[329892208,1718799057499,-755.3,0.00013972,2]
[329892209,1718799057513,-544.65,0.00013972,2]
[329892210,1718799057527,-2223.45,0.00013972,2]
[329892211,1718799057539,-1393.06,0.00013972,2]
[329892212,1718799057550,-679.96,0.00013972,2]
[329892213,1718799057561,-2177.77,0.00013972,2]
[329892214,1718799057574,-500.0,0.00013972,2]
[329892215,1718799057585,-500.0,0.00013972,2]
[329892216,1718799057597,-500.0,0.00013972,2]
[329892217,1718799057609,-971.62,0.00013972,2]
[329892218,1718799057620,-1247.83,0.00013972,2]
[329892219,1718799057632,-936.05,0.00013972,2]
[329892220,1718799057644,-1050.71,0.00013972,2]
[329892221,1718799057655,-952.18,0.00013972,2]
[329892222,1718799057668,-1680.51,0.00013972,2]
[329892223,1718799057679,-3511.36,0.00013972,2]
[329892224,1718799057691,-1867.83,0.00013972,2]
[329892225,1718799057703,-6373.44,0.00013972,2]
[329892226,1718799057715,-2685.0,0.00013972,2]
[329892227,1718799057727,-500.0,0.00013972,2]
[329892228,1718799057739,-4369.34,0.00013972,2]
[329892229,1718799057758,-971.66,0.00013972,2]
[329892230,1718799057770,-1502.55,0.00013972,2]
[329892231,1718799057783,-2045.46,0.00013972,2]
[329892232,1718799057795,-1031.7,0.00013972,2]
[329892233,1718799057806,-1706.87,0.00013972,2]
[329892234,1718799057818,-500.0,0.00013972,2]
[329892235,1718799057830,-894.38,0.00013972,2]
[329892236,1718799057842,-500.0,0.00013972,2]
[329892237,1718799057854,-994.85,0.00013972,2]
[329892238,1718799057865,-1115.18,0.00013972,2]
[329892239,1718799057877,-4224.0,0.00013972,2]
[329892240,1718799057889,-2730.96,0.00013972,2]
[329892241,1718799057901,-1274.9,0.00013972,2]
[329892242,1718799057912,-501.98,0.00013972,2]
[329892243,1718799057924,-500.0,0.00013972,2]
[329892244,1718799057935,-500.2987,0.00013972,2]
[329892245,1718799057947,-692.95,0.00013972,2]
[329892246,1718799057959,-5000.0,0.00013972,2]
[329892247,1718799057971,-767.92,0.00013972,2]
[329892248,1718799057983,-990.99,0.00013972,2]
[329892249,1718799057994,-9585.84,0.00013972,2]
[329892250,1718799058006,-3534.25,0.00013972,2]
[329892251,1718799058018,-723.78,0.00013972,2]
[329892252,1718799058030,-806.89,0.00013972,2]
[329892253,1718799058043,-3168.33,0.00013972,2]
[329892254,1718799058055,-6452.02,0.00013972,2]
[329892255,1718799058067,-1471.6,0.00013972,2]
[329892256,1718799058079,-1038.98,0.00013972,2]
[329892257,1718799058090,-11792.37,0.00013972,2]
[329892258,1718799058102,-1193.73,0.00013972,2]
[329892259,1718799058115,-789.53,0.00013972,2]
[329892260,1718799058128,-500.0,0.00013972,2]
[329892261,1718799058141,-7402.88,0.00013972,2]
[329892262,1718799058153,-500.0,0.00013972,2]
[329892263,1718799058165,-749.41,0.00013972,2]
[329892264,1718799058177,-500.0,0.00013972,2]
[329892265,1718799058189,-1465.73,0.00013972,2]
[329892266,1718799058201,-500.0,0.00013972,2]
[329892267,1718799058212,-4075.64,0.00013972,2]
[329892268,1718799058224,-820.23,0.00013972,2]
[329892269,1718799058236,-1891.33,0.00013972,2]
[329892270,1718799058248,-27156.13,0.00013972,2]
[329892271,1718799058259,-500.0,0.00013972,2]
[329892272,1718799058271,-18378.53,0.00013972,2]
[329892273,1718799058284,-500.0,0.00013972,2]
[329892274,1718799058296,-500.0,0.00013972,2]
[329892275,1718799058307,-724.36,0.00013972,2]
[329892276,1718799058320,-500.0,0.00013972,2]
[329892277,1718799058332,-500.0,0.00013972,2]
[329892278,1718799058344,-2010.17,0.00013972,2]
[329892279,1718799058355,-500.0,0.00013972,2]
[329892280,1718799058367,-696.91,0.00013972,2]
[329892281,1718799058378,-852.9,0.00013972,2]
[329892282,1718799058391,-26618.37,0.00013972,2]
[329892283,1718799058403,-1007.98,0.00013972,2]
[329892284,1718799058415,-545.23,0.00013972,2]
[329892285,1718799058426,-660.94,0.00013972,2]
[329892286,1718799058438,-500.0,0.00013972,2]
[329892287,1718799058450,-500.0,0.00013972,2]
[329892288,1718799058466,-500.0,0.00013972,2]
[329892289,1718799058478,-2283.33,0.00013972,2]
[329892290,1718799058490,-2122.64,0.00013972,2]
[329892291,1718799058504,-2889.32,0.00013972,2]
[329892292,1718799058516,-500.0,0.00013972,2]
[329892293,1718799058527,-2877.53,0.00013972,2]
[329892294,1718799058539,-1201.87,0.00013972,2]
[329892295,1718799058551,-3923.19,0.00013972,2]
[329892296,1718799058566,-2254.95,0.00013972,2]
[329892297,1718799058577,-702.66,0.00013972,2]
[329892298,1718799058589,-500.0,0.00013972,2]
[329892299,1718799058601,-897.78,0.00013972,2]
[329892300,1718799058612,-1108.54,0.00013972,2]
[329892301,1718799058624,-1047.31,0.00013972,2]
[329892302,1718799058636,-2868.01,0.00013972,2]
[329892303,1718799058648,-1863.76,0.00013972,2]
[329892304,1718799058660,-500.0,0.00013972,2]
[329892305,1718799058671,-573.45,0.00013972,2]
[329892306,1718799058683,-500.0,0.00013972,2]
[329892307,1718799058694,-943.53,0.00013972,2]
[329892308,1718799058705,-170.69696936,0.00013972,2]
[329892309,1718799058717,-500.0,0.00013972,2]
[329892310,1718799058728,-1274.8,0.00013972,2]
[329892311,1718799058740,-616.00178204,0.00013972,2]
[329892312,1718799058751,-959.11,0.00013972,2]
[329892313,1718799058762,-2001.52,0.00013972,2]
[329892314,1718799058774,-4412.31,0.00013972,2]
[329892315,1718799058785,-1718.59,0.00013972,2]
[329892316,1718799058796,-570.47,0.00013972,2]
[329892317,1718799058807,-1328.43,0.00013972,2]
[329892318,1718799058819,-17494.16,0.00013972,2]
[329892319,1718799058830,-1905.75,0.00013972,2]
[329892320,1718799058841,-824.25,0.00013972,2]
[329892321,1718799058853,-4451.62,0.00013972,2]
[329892322,1718799058863,-2585.5,0.00013972,2]
[329892323,1718799058874,-837.83,0.00013972,2]
[329892324,1718799058886,-500.0,0.00013972,2]
[329892325,1718799058897,-500.0,0.00013972,2]
[329892326,1718799058908,-2458.39,0.00013972,2]
[329892327,1718799058919,-2164.64,0.00013972,2]
[329892328,1718799058929,-870.26,0.00013972,2]
[329892329,1718799058940,-1349.65,0.00013972,2]
[329892330,1718799058951,-25810.46,0.00013972,2]
[329892331,1718799058962,-823.93,0.00013972,2]
[329892332,1718799058973,-500.0,0.00013972,2]
[329892333,1718799058984,-500.0,0.00013972,2]
[329892334,1718799058995,-4209.65,0.00013972,2]
[329892335,1718799059006,-8301.68,0.00013972,2]
[329892336,1718799059016,-1287.95,0.00013972,2]
[329892337,1718799059028,-624.73,0.00013972,2]
[329892338,1718799059039,-880.13,0.00013972,2]
[329892339,1718799059050,-565.67,0.00013972,2]
[329892340,1718799059061,-500.0,0.00013972,2]
[329892341,1718799059072,-636.65,0.00013972,2]
[329892342,1718799059084,-1973.74,0.00013972,2]
[329892343,1718799059095,-3298.06,0.00013972,2]
[329892344,1718799059106,-1476.92,0.00013972,2]
[329892345,1718799059117,-1524.22,0.00013972,2]
[329892346,1718799059128,-500.0,0.00013972,2]
[329892347,1718799059138,-832.69,0.00013972,2]
[329892348,1718799059149,-1932.0,0.00013972,2]
[329892349,1718799059160,-2923.6,0.00013972,2]
[329892350,1718799059173,-1781.82,0.00013972,2]
[329892351,1718799059184,-821.56,0.00013972,2]
[329892352,1718799059195,-4125.28,0.00013972,2]
[329892353,1718799059206,-538.81,0.00013972,2]
[329892354,1718799059216,-500.0,0.00013972,2]
[329892355,1718799059227,-1015.36,0.00013972,2]
[329892356,1718799059238,-1334.91,0.00013972,2]
[329892357,1718799059249,-2481.53,0.00013972,2]
[329892358,1718799059259,-837.34,0.00013972,2]
[329892359,1718799059270,-3031.05,0.00013972,2]
[329892360,1718799059281,-702.12,0.00013972,2]
[329892361,1718799059291,-500.0,0.00013972,2]
[329892362,1718799059301,-304.06348206,0.00013972,2]
[329892363,1718799059311,-1214.5,0.00013972,2]
[329892364,1718799059322,-1060.21,0.00013972,2]
[329892365,1718799059333,-500.0,0.00013972,2]
[329892366,1718799059343,-5172.42,0.00013972,2]
[329892367,1718799059354,-649.18,0.00013972,2]
[329892368,1718799059364,-1433.1,0.00013972,2]
[329892369,1718799059375,-7711.71,0.00013972,2]
[329892370,1718799059385,-1821.55,0.00013972,2]
[329892371,1718799059396,-500.0,0.00013972,2]
[329892372,1718799059406,-3544.63,0.00013972,2]
[329892373,1718799059417,-211.20978971,0.00013972,2]
[329892374,1718799059428,-500.0,0.00013972,2]
[329892375,1718799059438,-1283.42,0.00013972,2]
[329892376,1718799059449,-1193.84,0.00013972,2]
[329892377,1718799059462,-5221.12,0.00013972,2]
[329892378,1718799059474,-3347.12,0.00013972,2]
[329892379,1718799059486,-511.72,0.00013972,2]
[329892380,1718799059498,-918.16,0.00013972,2]
[329892381,1718799059509,-2860.37,0.00013972,2]
[329892382,1718799059521,-2260.58,0.00013972,2]
[329892383,1718799059535,-500.0,0.00013972,2]
[329892384,1718799059547,-8958.28,0.00013972,2]
[329892385,1718799059558,-8208.7,0.00013972,2]
[329892386,1718799059569,-619.32,0.00013972,2]
[329892387,1718799059579,-771.23,0.00013972,2]
[329892388,1718799059591,-1032.05,0.00013972,2]
[329892389,1718799059602,-537.71,0.00013972,2]
[329892390,1718799059613,-4572.65,0.00013972,2]
[329892391,1718799059624,-1221.81,0.00013972,2]
[329892392,1718799059636,-500.0,0.00013972,2]
[329892393,1718799059646,-500.0,0.00013972,2]
[329892394,1718799059658,-2508.73,0.00013972,2]
[329892395,1718799059668,-1979.86,0.00013972,2]
[329892396,1718799059680,-19337.53,0.00013972,2]
[329892397,1718799059691,-5320.69,0.00013972,2]
[329892398,1718799059702,-669.49,0.00013972,2]
[329892399,1718799059713,-500.0,0.00013972,2]
[329892400,1718799059724,-500.0,0.00013972,2]
[329892401,1718799059735,-500.0,0.00013972,2]
[329892402,1718799059746,-450.22574179,0.00013972,2]
[329892403,1718799059757,-589.17,0.00013972,2]
[329892404,1718799059768,-1456.29,0.00013972,2]
[329892405,1718799059783,-1321.09,0.00013972,2]
[329892406,1718799059794,-500.0,0.00013972,2]
[329892407,1718799059805,-1052.12,0.00013972,2]
[329892408,1718799059818,-2327.61,0.00013972,2]
[329892409,1718799059829,-506.85,0.00013972,2]
[329892410,1718799059841,-1579.59,0.00013972,2]
[329892411,1718799059852,-1905.94,0.00013972,2]
[329892412,1718799059863,-7207.31,0.00013972,2]
[329892413,1718799059875,-3617.57,0.00013972,2]
[329892414,1718799059886,-1624.75,0.00013972,2]
[329892415,1718799059897,-1124.26,0.00013972,2]
[329892416,1718799059909,-500.0,0.00013972,2]
[329892417,1718799059920,-12318.11,0.00013972,2]
[329892418,1718799059931,-500.0,0.00013972,2]
[329892419,1718799059943,-500.0,0.00013972,2]
[329892420,1718799059955,-500.0,0.00013972,2]
[329892421,1718799059965,-500.0,0.00013972,2]
[329892422,1718799059977,-707.45,0.00013972,2]
[329892423,1718799059988,-2231.9,0.00013972,2]
[329892424,1718799059999,-2181.4,0.00013972,2]
[329892425,1718799060010,-919.83,0.00013972,2]
[329892426,1718799060500,-4935.96,0.00013972,2]
[329892427,1718799060526,-1803.14,0.00013972,2]
[329892428,1718799060540,-5090.89,0.00013972,2]
[329892429,1718799060550,-2123.97,0.00013972,2]
[329892430,1718799060559,-943.87,0.00013972,2]
[329892431,1718799060568,-500.0,0.00013972,2]
[329892432,1718799060578,-521.08,0.00013972,2]
[329892433,1718799060587,-2774.89,0.00013972,2]
[329892434,1718799060596,-1779.64,0.00013972,2]
[329892435,1718799060606,-10727.07,0.00013972,2]
[329892436,1718799060615,-2366.69,0.00013972,2]
[329892437,1718799060624,-1464.91,0.00013972,2]
[329892438,1718799060634,-4431.86,0.00013972,2]
[329892439,1718799060643,-500.0,0.00013972,2]
[329892440,1718799060653,-500.0,0.00013972,2]